bitfinex/quotes_SOLUSD_20250107
["timestamp","ask_amount","ask_price","bid_price","bid_amount"]
[1736240923562,8.99963535,216.34,216.33,8.769361]
[1736240923865,8.99963535,216.34,216.32,7.152461]
[1736240924059,8.99963535,216.33,216.32,7.152461]
[1736240924571,8.99963535,216.33,216.31,7.152461]
[1736240926669,8.99963535,216.34,216.31,7.152461]
[1736240928370,8.99963535,216.34,216.31,0.12549]
[1736240930179,8.99963535,216.34,216.31,7.277951]
[1736240932455,8.99963535,216.35,216.31,7.277951]
[1736240940210,8.99963535,216.36,216.31,7.277951]
[1736240941621,11.5523,216.41,216.31,7.9712246]
[1736240941909,1.92,216.42,216.34,8.99963535]
[1736240941910,8.99963535,216.4,216.34,8.99963535]
[1736240942289,8.99963535,216.4,216.35,0.12549]
[1736240945299,13.4905,216.44,216.35,9.12512535]
[1736240945508,8.99963535,216.4,216.35,9.12512535]
[1736240948117,8.99963535,216.41,216.35,9.12512535]
[1736240950746,6.5809,216.5,216.38,8.99963535]
[1736240951032,8.99963535,216.47,216.42,8.99963535]
[1736240951392,8.99963535,216.48,216.42,8.99963535]
[1736240951593,1.92,216.5,216.42,8.99963535]
[1736240951794,8.99963535,216.48,216.42,8.99963535]
[1736240952417,8.99963535,216.48,216.43,8.99963535]
[1736240953706,8.99963535,216.47,216.41,10.57323535]
[1736240954627,8.99963535,216.46,216.41,10.57323535]
[1736240954835,8.99963535,216.46,216.41,1.5736]
[1736240955538,8.99963535,216.43,216.41,1.5736]
[1736240955867,8.99963535,216.42,216.39,0.12549]
[1736240960228,8.99963535,216.41,216.37,6.6209]
[1736240960419,8.99963535,216.41,216.36,8.794761]
[1736240960617,35.9985414,216.48,216.36,8.794761]
[1736240960618,8.99963535,216.4,216.36,8.794761]
[1736240960803,8.99963535,216.41,216.37,0.12549]
[1736240961011,8.99963535,216.42,216.37,0.12549]
[1736240962928,44.99817675,216.38,216.35,7.152461]
[1736240963133,8.99963535,216.36,216.35,7.152461]
[1736240963441,10.91963535,216.36,216.35,7.152461]
[1736240964007,10.91963535,216.36,216.25,8.846251]
[1736240964204,8.99963535,216.3,216.26,0.25098]
[1736240964713,8.99963535,216.3,216.26,24.027864]
[1736240964920,8.99963535,216.3,216.27,20.0]
[1736240966232,1.92,216.36,216.26,44.72127932]
[1736240966432,1.92,216.36,216.26,53.59542467]
[1736240966616,8.99963535,216.32,216.27,0.12549]
[1736240967121,8.99963535,216.34,216.29,23.902374]
[1736240967326,1.92,216.36,216.29,23.902374]
[1736240967327,1.92,216.36,216.3,0.12549]
[1736240967529,8.99963535,216.35,216.31,0.12549]
[1736240968422,8.99963535,216.35,216.3,0.25098]
[1736240969223,8.99963535,216.32,216.3,0.12549]
[1736240969827,8.99963535,216.32,216.3,20.12549]
[1736240970636,8.99963535,216.32,216.27,0.69325694]
[1736240970839,8.99963535,216.31,216.25,10.56793535]
[1736240971354,8.99963535,216.31,216.29,20.0]
[1736240971532,8.99963535,216.31,216.26,24.153354]
[1736240971714,8.99963535,216.29,216.26,24.153354]
[1736240972162,8.99963535,216.3,216.26,24.153354]
[1736240972318,8.99963535,216.31,216.26,24.153354]
[1736240972520,8.99963535,216.31,216.26,24.84674552]
[1736240973138,8.99963535,216.31,216.26,20.12549]
[1736240973316,8.99963535,216.3,216.27,20.0]
[1736240974343,8.99963535,216.29,216.27,20.0]
[1736240974539,8.99963535,216.29,216.26,0.12549]
[1736240975348,8.99963535,216.3,216.26,0.12549]
[1736240977751,8.99963535,216.29,216.26,0.12549]
[1736240979049,8.99963535,216.3,216.27,20.0]
[1736240979550,8.99963535,216.31,216.27,20.0]
[1736240981044,8.99963535,216.3,216.27,20.0]
[1736240984250,1.92,216.36,216.27,20.0]
[1736240984452,8.99963535,216.3,216.27,20.0]
[1736240984847,1.92,216.36,216.25,1.5683]
[1736240984848,8.99963535,216.28,216.25,1.5683]
[1736240985045,8.99963535,216.26,216.23,0.12549]
[1736240985245,8.99963535,216.26,216.24,20.12549]
[1736240989261,8.99963535,216.26,216.22,23.776884]
[1736240989449,8.99963535,216.23,216.19,1.5822]
[1736240990060,8.99963535,216.23,216.21,20.0]
[1736240990255,8.99963535,216.22,216.21,20.0]
[1736240992171,8.99963535,216.22,216.2,20.0]
[1736240993045,8.99963535,216.22,216.19,20.0]
[1736240993869,8.99963535,216.22,216.18,0.12549]
[1736240994246,1.96,216.29,216.21,20.0]
[1736240994446,8.99963535,216.25,216.21,20.0]
[1736240995873,8.99963535,216.27,216.21,28.99963535]
[1736240996269,8.99963535,216.25,216.21,20.0]
[1736240997861,8.99963535,216.26,216.21,20.0]
[1736240998172,8.99963535,216.27,216.22,0.12549]
[1736240998354,8.99963535,216.29,216.23,8.99963535]
[1736240998548,8.99963535,216.29,216.23,9.69313912]
[1736240998748,8.99963535,216.29,216.24,0.12549]
[1736240998976,8.99963535,216.31,216.25,8.99963535]
[1736240999975,8.99963535,216.32,216.25,8.99963535]
[1736241000272,8.99963535,216.32,216.26,8.99963535]
[1736241000473,8.99963535,216.32,216.25,8.99963535]
[1736241000675,8.99963535,216.32,216.26,24.027864]
[1736241000888,8.99963535,216.33,216.28,0.12549]
[1736241001174,8.99963535,216.34,216.28,9.12512535]
[1736241001576,8.99963535,216.35,216.29,8.99963535]
[1736241001874,1.96,216.37,216.31,8.99963535]
[1736241002073,8.99963535,216.36,216.3,8.99963535]
[1736241002255,8.99963535,216.36,216.31,0.12549]
[1736241004550,8.99963535,216.35,216.3,0.25098]
[1736241004850,8.99963535,216.34,216.28,10.53953535]
[1736241005078,8.99963535,216.33,216.28,1.5399]
[1736241005282,8.99963535,216.31,216.29,0.12549]
[1736241006082,8.99963535,216.3,216.28,1.5399]
[1736241006257,8.99963535,216.29,216.23,1.6606]
[1736241006590,8.99963535,216.28,216.25,20.0]
[1736241006759,8.99963535,216.29,216.25,20.0]
[1736241007562,8.99963535,216.3,216.25,20.0]
[1736241009882,6.0103,216.39,216.27,9.12512535]
[1736241010089,13.35730487,216.41,216.3,0.12549]
[1736241010090,8.99963535,216.35,216.3,0.12549]
[1736241010566,8.99963535,216.34,216.29,0.12549]
[1736241011582,8.99963535,216.33,216.29,0.12549]
[1736241012173,8.99963535,216.34,216.29,0.12549]
[1736241012564,8.99963535,216.34,216.29,23.902374]
[1736241013794,8.99963535,216.34,216.29,0.12549]
[1736241014761,8.99963535,216.34,216.29,23.902374]
[1736241015995,8.99963535,216.33,216.29,23.902374]
[1736241016188,8.99963535,216.34,216.29,23.902374]
[1736241017579,1.96,216.38,216.29,0.12549]
[1736241017580,8.99963535,216.33,216.29,0.12549]
[1736241019496,1.96,216.38,216.29,0.12549]
[1736241019497,8.99963535,216.34,216.29,0.12549]
[1736241022596,17.8789,216.45,216.3,9.12512535]
[1736241022771,8.99963535,216.41,216.34,23.902374]
[1736241022974,8.99963535,216.36,216.31,20.0]
[1736241024005,8.99963535,216.34,216.31,20.0]
[1736241024895,8.99963535,216.33,216.31,20.0]
[1736241025677,8.99963535,216.35,216.31,20.0]
[1736241026707,11.5516,216.42,216.32,24.027864]
[1736241026890,6.3287,216.45,216.33,8.99963535]
[1736241027215,8.99963535,216.37,216.32,24.027864]
[1736241027370,8.99963535,216.36,216.32,24.027864]
[1736241029999,8.99963535,216.34,216.31,20.0]
[1736241030500,8.99963535,216.34,216.3,8.1002]
[1736241037792,8.99963535,216.35,216.3,8.1002]
[1736241049915,8.99963535,216.33,216.27,0.69318679]
[1736241050120,8.99963535,216.31,216.26,18.533073]
[1736241050415,8.99963535,216.31,216.27,0.12549]
[1736241055117,1.94,216.36,216.27,24.027864]
[1736241055317,8.99963535,216.32,216.27,24.027864]
[1736241057721,8.99963535,216.31,216.27,24.027864]
[1736241061916,8.99963535,216.32,216.27,33.02749935]
[1736241067302,8.99963535,216.32,216.27,24.027864]
[1736241070527,8.99963535,216.31,216.27,24.027864]
[1736241072835,8.99963535,216.31,216.27,0.12549]
[1736241078544,8.99963535,216.31,216.26,1.5623]
[1736241080349,8.99963535,216.31,216.26,10.56193535]
[1736241081151,8.99963535,216.32,216.26,10.56193535]
[1736241081327,1.94,216.36,216.27,0.12549]
[1736241081529,8.99963535,216.33,216.27,9.12512535]
[1736241085932,1.94,216.36,216.27,9.12512535]
[1736241086131,8.99963535,216.33,216.27,9.12512535]
[1736241088464,8.99963535,216.33,216.29,0.12549]
[1736241089363,1.94,216.36,216.29,0.12549]
[1736241089548,8.99963535,216.33,216.29,0.12549]
[1736241094537,8.99963535,216.32,216.29,0.12549]
[1736241094741,1.94,216.36,216.26,1.5623]
[1736241095165,8.99963535,216.32,216.27,24.153354]
[1736241098968,8.99963535,216.33,216.27,24.153354]
[1736241100165,8.99963535,216.33,216.27,33.15298935]
[1736241103469,8.99963535,216.33,216.27,24.153354]
[1736241104147,1.94,216.36,216.27,24.153354]
[1736241104353,8.99963535,216.33,216.27,24.153354]
[1736241104980,1.94,216.36,216.3,0.12549]
[1736241105156,10.93963535,216.36,216.3,0.12549]
[1736241105770,8.99963535,216.36,216.3,0.12549]
[1736241106095,16.5515,216.43,216.32,0.12549]
[1736241106272,8.99963535,216.37,216.32,0.12549]
[1736241106576,1.94,216.38,216.32,0.12549]
[1736241106751,8.99963535,216.37,216.32,0.12549]
[1736241107771,8.99963535,216.36,216.32,0.12549]
[1736241110262,8.99963535,216.37,216.32,0.12549]
[1736241110572,10.93963535,216.4,216.35,23.776884]
[1736241110874,1.94,216.4,216.35,32.77651935]
[1736241111274,8.99963535,216.41,216.35,32.77651935]
[1736241111462,8.99963535,216.4,216.34,32.90200935]
[1736241113177,1.94,216.41,216.34,32.90200935]
[1736241113378,8.99963535,216.4,216.34,32.90200935]
[1736241114177,10.93963535,216.41,216.34,32.90200935]
[1736241115561,8.99963535,216.4,216.34,32.90200935]
[1736241117988,8.99963535,216.4,216.34,23.902374]
[1736241118377,8.99963535,216.36,216.33,1.5373]
[1736241121369,1.94,216.41,216.31,6.71989]
[1736241121370,8.99963535,216.35,216.31,6.71989]
[1736241121571,8.99963535,216.34,216.32,23.902374]
[1736241121888,8.99963535,216.33,216.32,0.12549]
[1736241122786,8.99963535,216.33,216.31,0.12549]
[1736241122988,8.99963535,216.33,216.31,23.902374]
[1736241123569,11.5527,216.4,216.29,20.12549]
[1736241123570,8.99963535,216.32,216.29,20.12549]
[1736241123762,8.99963535,216.33,216.3,23.902374]
[1736241124273,8.99963535,216.33,216.3,0.12549]
[1736241125171,8.99963535,216.32,216.3,0.12549]
[1736241131096,8.64602535,216.32,216.3,0.12549]
[1736241131880,8.99963535,216.33,216.3,0.12549]
[1736241132284,8.99963535,216.34,216.3,0.12549]
[1736241138604,8.99963535,216.33,216.3,0.12549]
[1736241141907,1.94,216.36,216.3,0.12549]
[1736241142207,8.99963535,216.33,216.3,0.12549]
[1736241142379,1.94,216.36,216.3,0.12549]
[1736241142582,8.99963535,216.33,216.3,0.12549]
[1736241143624,8.99963535,216.34,216.3,0.12549]
[1736241145909,8.99963535,216.34,216.3,0.25098]
[1736241146087,1.94,216.36,216.3,0.25098]
[1736241146088,8.99963535,216.35,216.3,0.25098]
[1736241151127,8.99963535,216.34,216.3,0.25098]
[1736241156330,8.99963535,216.35,216.3,0.25098]
[1736241157300,8.99963535,216.34,216.3,0.25098]
[1736241158533,8.99963535,216.34,216.3,0.12549]
[1736241163510,1.94,216.37,216.3,0.12549]
[1736241163712,8.99963535,216.34,216.3,0.12549]
[1736241166912,8.99963535,216.33,216.3,0.12549]
[1736241169235,8.99963535,216.33,216.29,23.776884]
[1736241169416,8.99963535,216.3,216.26,7.152461]
[1736241169624,8.99963535,216.27,216.26,7.152461]
[1736241170234,8.99963535,216.27,216.23,1.6336]
[1736241170434,8.99963535,216.27,216.24,24.027864]
[1736241170735,8.99963535,216.27,216.24,20.25098]
[1736241171233,8.99963535,216.27,216.25,23.776884]
[1736241172137,8.99963535,216.26,216.25,23.776884]
[1736241172434,8.99963535,216.26,216.25,23.902374]
[1736241173139,8.99963535,216.27,216.25,23.902374]
[1736241180441,8.99963535,216.28,216.25,23.902374]
[1736241186548,8.99963535,216.3,216.26,0.12549]
[1736241186855,1.94,216.31,216.26,0.12549]
[1736241186856,8.99963535,216.31,216.28,0.12549]
[1736241187635,8.99963535,216.31,216.27,0.12549]
[1736241188348,8.99963535,216.3,216.26,0.12549]
[1736241190754,8.99963535,216.31,216.26,23.902374]
[1736241193657,8.99963535,216.31,216.26,0.12549]
[1736241194438,8.99963535,216.3,216.26,0.12549]
[1736241195358,1.94,216.34,216.26,0.12549]
[1736241195559,8.99963535,216.3,216.26,0.12549]
[1736241201439,1.94,216.34,216.26,0.12549]
[1736241201643,8.99963535,216.3,216.26,0.12549]
[1736241202769,1.94,216.34,216.26,0.12549]
[1736241202943,8.99963535,216.3,216.26,0.12549]
[1736241203870,1.94,216.34,216.26,0.12549]
[1736241204071,8.99963535,216.3,216.26,0.12549]
[1736241208086,93.82564571,216.41,216.27,24.027864]
[1736241208261,8.99963535,216.34,216.29,0.12549]
[1736241208877,8.99963535,216.33,216.29,0.12549]
[1736241209374,8.99963535,216.34,216.29,0.12549]
[1736241210590,8.99963535,216.33,216.29,0.12549]
[1736241210752,8.99963535,216.32,216.29,0.12549]
[1736241213952,8.99963535,216.33,216.29,0.12549]
[1736241220681,8.99963535,216.31,216.29,0.12549]
[1736241222489,8.99963535,216.31,216.28,1.5477]
[1736241225702,8.99963535,216.32,216.28,1.5477]
[1736241226099,8.99963535,216.33,216.28,1.5477]
[1736241226305,1.94,216.35,216.29,0.12549]
[1736241226590,8.99963535,216.34,216.29,0.12549]
[1736241230094,8.99963535,216.33,216.29,0.12549]
[1736241231797,8.99963535,216.34,216.29,0.12549]
[1736241231995,13.37742303,216.42,216.31,0.12549]
[1736241232298,8.99963535,216.37,216.31,0.12549]
[1736241232494,8.99963535,216.38,216.31,0.37647]
[1736241232698,8.99963535,216.37,216.31,0.37647]
[1736241233072,8.99963535,216.36,216.31,0.37647]
[1736241239711,1.92,216.4,216.31,0.37647]
[1736241239912,8.99963535,216.36,216.31,0.37647]
[1736241240208,8.99963535,216.37,216.31,9.37610535]
[1736241240992,11.552,216.42,216.32,23.776884]
[1736241241212,8.99963535,216.38,216.34,0.12549]
[1736241242705,1.92,216.41,216.32,6.1823]
[1736241242706,8.99963535,216.36,216.32,6.1823]
[1736241243089,8.99963535,216.36,216.33,0.12549]
[1736241246897,8.99963535,216.34,216.28,1.5477]
[1736241247097,8.99963535,216.32,216.28,1.5477]
[1736241247416,8.99963535,216.3,216.29,0.12549]
[1736241247620,8.99963535,216.33,216.29,0.12549]
[1736241253428,8.99963535,216.34,216.29,0.12549]
[1736241259826,8.99963535,216.33,216.29,0.12549]
[1736241264932,1.92,216.37,216.29,0.12549]
[1736241265136,8.99963535,216.34,216.29,0.12549]
[1736241269630,1.92,216.37,216.31,0.12549]
[1736241269838,10.91963535,216.37,216.31,9.12512535]
[1736241270313,8.99963535,216.36,216.31,0.12549]
[1736241272941,8.99963535,216.37,216.31,9.12512535]
[1736241273134,8.99963535,216.37,216.31,0.12549]
[1736241275745,8.99963535,216.36,216.31,0.12549]
[1736241278732,1.92,216.39,216.31,9.12512535]
[1736241279049,8.99963535,216.37,216.31,9.12512535]
[1736241281650,8.99963535,216.38,216.31,9.12512535]
[1736241287752,8.99963535,216.37,216.31,9.12512535]
[1736241288058,8.99963535,216.36,216.31,0.12549]
[1736241288856,8.99963535,216.35,216.31,0.12549]
[1736241290467,8.99963535,216.36,216.31,0.12549]
[1736241291267,8.99963535,216.37,216.31,0.12549]
[1736241292061,8.99963535,216.36,216.31,0.12549]
[1736241295883,8.99963535,216.32,216.29,7.152461]
[1736241296247,8.99963535,216.32,216.28,1.5477]
[1736241296638,8.99963535,216.32,216.29,0.12549]
[1736241300504,8.99963535,216.31,216.28,1.5477]
[1736241303092,8.99963535,216.3,216.28,1.5477]
[1736241303256,35.9985414,216.37,216.25,7.152461]
[1736241303257,8.99963535,216.29,216.25,7.152461]
[1736241303463,8.99963535,216.28,216.25,7.152461]
[1736241303777,8.99963535,216.29,216.25,7.152461]
[1736241304085,8.99963535,216.29,216.25,0.12549]
[1736241306911,8.99963535,216.28,216.25,0.12549]
[1736241307066,8.99963535,216.28,216.24,7.152461]
[1736241307273,8.99963535,216.26,216.24,7.152461]
[1736241308313,8.99963535,216.25,216.24,7.152461]
[1736241308474,8.99963535,216.25,216.22,14.304922]
[1736241308829,8.99963535,216.23,216.21,7.152461]
[1736241309109,8.99963535,216.24,216.21,7.152461]
[1736241309609,8.99963535,216.24,216.2,0.12549]
[1736241310615,8.99963535,216.24,216.19,0.25098]
[1736241311119,8.99963535,216.24,216.19,0.12549]
[1736241315025,13.4769,216.32,216.19,0.12549]
[1736241315234,8.99963535,216.23,216.19,0.12549]
[1736241316123,13.4769,216.32,216.21,9.12512535]
[1736241316339,8.99963535,216.28,216.22,8.99963535]
[1736241316628,8.99963535,216.29,216.23,8.99963535]
[1736241316829,8.99963535,216.3,216.24,8.99963535]
[1736241320826,1.92,216.33,216.24,8.99963535]
[1736241321018,8.99963535,216.3,216.24,8.99963535]
[1736241321636,8.99963535,216.29,216.24,8.99963535]
[1736241321844,8.99963535,216.29,216.24,0.12549]
[1736241324251,8.99963535,216.28,216.22,9.12512535]
[1736241324952,8.99963535,216.23,216.17,7.152461]
[1736241325260,8.99963535,216.19,216.16,8.682261]
[1736241325633,8.99963535,216.2,216.17,0.12549]
[1736241327651,8.99963535,216.21,216.17,0.12549]
[1736241330924,8.99963535,216.2,216.17,0.12549]
[1736241333252,8.99963535,216.2,216.16,1.5298]
[1736241333551,8.99963535,216.18,216.14,0.12549]
[1736241333925,8.99963535,216.17,216.14,0.12549]
[1736241334134,8.99963535,216.17,216.13,0.12549]
[1736241334451,8.99963535,216.16,216.11,1.654]
[1736241334633,8.99963535,216.15,216.11,1.654]
[1736241334840,8.99963535,216.16,216.11,1.654]
[1736241335250,8.99963535,216.17,216.11,10.65363535]
[1736241337269,8.99963535,216.16,216.11,1.654]
[1736241337567,8.99963535,216.15,216.11,1.654]
[1736241337868,8.99963535,216.16,216.11,1.654]
[1736241338068,8.99963535,216.17,216.11,10.65363535]
[1736241340165,1.92,216.19,216.12,32.90200935]
[1736241340362,1.92,216.19,216.14,9.12512535]
[1736241340783,1.92,216.19,216.15,8.99963535]
[1736241340944,8.99963535,216.21,216.15,8.99963535]
[1736241341750,8.99963535,216.2,216.14,8.99963535]
[1736241341944,8.99963535,216.19,216.14,8.99963535]
[1736241342150,8.99963535,216.18,216.13,0.12549]
[1736241342348,8.99963535,216.17,216.11,1.654]
[1736241342655,8.99963535,216.17,216.11,10.65363535]
[1736241343043,8.99963535,216.16,216.11,10.65363535]
[1736241344574,8.99963535,216.17,216.11,10.65363535]
[1736241347070,8.99963535,216.16,216.11,10.65363535]
[1736241348671,8.99963535,216.17,216.11,10.65363535]
[1736241351701,1.92,216.22,216.12,9.12512535]
[1736241351702,8.99963535,216.18,216.12,9.12512535]
[1736241351996,8.99963535,216.18,216.13,8.99963535]
[1736241352181,8.99963535,216.19,216.13,8.99963535]
[1736241352802,1.92,216.22,216.13,8.99963535]
[1736241353168,8.99963535,216.19,216.13,8.99963535]
[1736241354587,1.92,216.22,216.13,8.99963535]
[1736241354783,81.9,216.25,216.13,8.99963535]
[1736241354985,1.92,216.21,216.13,8.99963535]
[1736241355191,8.99963535,216.19,216.13,8.99963535]
[1736241355988,8.99963535,216.19,216.14,8.99963535]
[1736241356568,8.99963535,216.19,216.13,8.99963535]
[1736241357482,8.99963535,216.18,216.12,9.12512535]
[1736241359185,8.99963535,216.19,216.13,8.99963535]
[1736241361193,8.99963535,216.19,216.12,0.12549]
[1736241361385,1.92,216.21,216.12,9.12512535]
[1736241361386,8.99963535,216.18,216.12,9.12512535]
[1736241362693,1.92,216.21,216.15,8.99963535]
[1736241363001,1.92,216.21,216.12,0.12549]
[1736241363002,1.92,216.21,216.16,8.99963535]
[1736241363206,8.99963535,216.22,216.16,8.99963535]
[1736241366405,8.99963535,216.21,216.16,0.12549]
[1736241368002,8.99963535,216.21,216.13,0.37647]
[1736241368203,8.99963535,216.21,216.16,0.12549]
[1736241369898,10.91963535,216.26,216.2,9.12512535]
[1736241370108,8.99963535,216.29,216.23,8.99963535]
[1736241370309,1.92,216.31,216.25,8.99963535]
[1736241370479,10.91963535,216.31,216.25,8.99963535]
[1736241371089,8.99963535,216.3,216.24,8.99963535]
[1736241371508,8.99963535,216.29,216.23,8.99963535]
[1736241371687,8.99963535,216.29,216.22,0.12549]
[1736241371999,1.92,216.31,216.23,0.12549]
[1736241372000,8.99963535,216.28,216.23,0.12549]
[1736241373893,8.99963535,216.27,216.23,0.12549]
[1736241374887,8.99963535,216.27,216.22,0.12549]
[1736241379191,8.99963535,216.28,216.23,0.12549]
[1736241383903,8.99963535,216.27,216.19,23.776884]
[1736241384104,8.99963535,216.27,216.21,8.99963535]
[1736241384319,8.99963535,216.27,216.22,0.12549]
[1736241391925,8.99963535,216.27,216.21,0.12549]
[1736241392317,8.99963535,216.28,216.21,9.12512535]
[1736241392625,11.5554,216.35,216.23,10.78902535]
[1736241392824,8.99963535,216.3,216.23,10.78902535]
[1736241393120,1.92,216.31,216.23,1.78939]
[1736241393121,8.99963535,216.29,216.23,1.78939]
[1736241393503,8.99963535,216.27,216.23,1.78939]
[1736241394724,8.99963535,216.27,216.23,1.6639]
[1736241394911,8.99963535,216.26,216.23,1.6639]
[1736241395726,8.99963535,216.27,216.23,1.6639]
[1736241397127,8.99963535,216.29,216.23,10.66353535]
[1736241399112,8.99963535,216.29,216.23,1.6639]
[1736241399628,8.99963535,216.28,216.23,1.6639]
[1736241401036,8.99963535,216.27,216.23,1.6639]
[1736241402504,8.99963535,216.28,216.23,1.6639]
[1736241404106,8.99963535,216.27,216.23,1.6639]
[1736241405002,8.99963535,216.26,216.23,1.6639]
[1736241410048,8.99963535,216.26,216.21,0.12549]
[1736241410205,8.99963535,216.26,216.21,23.902374]
[1736241411125,8.99963535,216.27,216.21,23.902374]
[1736241412735,8.99963535,216.27,216.21,9.12512535]
[1736241414616,8.99963535,216.28,216.21,9.12512535]
[1736241416618,8.99963535,216.28,216.22,8.99963535]
[1736241418463,11.5554,216.35,216.22,8.99963535]
[1736241418636,1.92,216.34,216.22,8.99963535]
[1736241418959,8.99963535,216.29,216.22,8.99963535]
[1736241420561,1.92,216.32,216.25,1.5368]
[1736241420756,8.99963535,216.31,216.25,10.53643535]
[1736241421963,10.91963535,216.32,216.26,8.99963535]
[1736241422261,1.92,216.32,216.26,8.99963535]
[1736241422431,81.9,216.37,216.27,8.99963535]
[1736241422636,8.99963535,216.34,216.28,8.99963535]
[1736241422942,12.7637,216.44,216.28,8.99963535]
[1736241422943,23.776884,216.43,216.28,8.99963535]
[1736241423134,23.776884,216.43,216.26,23.902374]
[1736241423135,8.99963535,216.36,216.3,8.99963535]
[1736241423572,8.99963535,216.37,216.27,0.69335058]
[1736241423743,11.5514,216.43,216.32,1.5621]
[1736241423744,10.91963535,216.38,216.32,1.5621]
[1736241423935,1.92,216.38,216.32,10.56173535]
[1736241424635,10.91963535,216.38,216.32,10.56173535]
[1736241425344,37.82637284,216.48,216.34,8.99963535]
[1736241425345,11.5489,216.47,216.34,8.99963535]
[1736241425571,8.99963535,216.41,216.35,8.99963535]
[1736241426259,8.99963535,216.4,216.34,8.99963535]
[1736241428983,8.99963535,216.41,216.35,8.99963535]
[1736241431480,20.0,216.44,216.35,8.99963535]
[1736241431662,8.99963535,216.41,216.35,8.99963535]
[1736241433180,8.99963535,216.41,216.35,23.902374]
[1736241433852,8.99963535,216.39,216.33,8.99963535]
[1736241434171,8.99963535,216.39,216.32,10.56173535]
[1736241434379,8.99963535,216.39,216.33,23.902374]
[1736241434562,8.99963535,216.38,216.33,23.902374]
[1736241434750,8.99963535,216.36,216.32,1.5621]
[1736241434947,8.99963535,216.34,216.32,1.5621]
[1736241436075,8.99963535,216.35,216.32,1.5621]
[1736241436457,8.99963535,216.36,216.32,1.5621]
[1736241437364,8.99963535,216.35,216.32,1.5621]
[1736241440283,8.99963535,216.36,216.32,1.5621]
[1736241441612,8.99963535,216.35,216.32,1.5621]
[1736241442272,31.5507,216.44,216.32,1.5621]
[1736241442468,1.92,216.46,216.35,9.12512535]
[1736241442675,8.99963535,216.42,216.36,8.99963535]
[1736241442875,1.92,216.46,216.37,8.99963535]
[1736241443077,8.99963535,216.44,216.38,8.99963535]
[1736241443279,8.99963535,216.44,216.39,1.5566]
[1736241443888,8.99963535,216.43,216.39,1.5566]
[1736241444484,20.0,216.47,216.39,1.5566]
[1736241444790,8.99963535,216.43,216.39,1.5566]
[1736241446575,8.99963535,216.42,216.39,1.5566]
[1736241447090,8.99963535,216.41,216.39,1.5566]
[1736241448594,8.96622258,216.41,216.39,1.5566]
[1736241449395,8.99963535,216.42,216.39,1.5566]
[1736241454502,21.92,216.47,216.39,1.5566]
[1736241454691,8.99963535,216.44,216.39,8.1615]
[1736241456503,8.99963535,216.43,216.39,8.1615]
[1736241456797,8.99963535,216.42,216.39,8.1615]
[1736241456972,8.99963535,216.42,216.39,1.5566]
[1736241457180,8.99963535,216.4,216.39,1.5566]
[1736241462804,8.99963535,216.4,216.35,0.12549]
[1736241465809,8.99963535,216.39,216.35,0.12549]
[1736241466817,20.0,216.47,216.34,1.5893]
[1736241466818,8.99963535,216.36,216.34,1.5893]
[1736241467110,8.99963535,216.35,216.29,1.5253]
[1736241467294,8.99963535,216.32,216.31,20.0]
[1736241467493,8.99963535,216.32,216.29,1.5253]
[1736241467697,8.99963535,216.31,216.29,1.5253]
[1736241468896,8.99963535,216.32,216.29,1.5253]
[1736241469310,1.92,216.36,216.29,1.5253]
[1736241469688,8.99963535,216.32,216.29,1.5253]
[1736241471527,8.99963535,216.31,216.29,1.5253]
[1736241471895,8.99963535,216.32,216.29,1.5253]
[1736241473519,1.92,216.36,216.29,1.5253]
[1736241473520,8.99963535,216.33,216.29,1.5253]
[1736241475312,8.99963535,216.32,216.29,1.5253]
[1736241477727,8.99963535,216.31,216.29,1.5253]
[1736241478230,8.99963535,216.31,216.26,28.99963535]
[1736241479509,8.99963535,216.32,216.26,28.99963535]
[1736241484430,8.99963535,216.33,216.27,8.99963535]
[1736241484732,1.92,216.36,216.28,8.99963535]
[1736241484911,8.99963535,216.34,216.28,8.99963535]
[1736241485546,8.99963535,216.33,216.28,8.99963535]
[1736241487741,8.99963535,216.33,216.27,32.90200935]
[1736241488928,8.99963535,216.32,216.27,23.902374]
[1736241489357,8.99963535,216.31,216.24,8.797461]
[1736241489636,8.99963535,216.31,216.25,8.99963535]
[1736241495043,8.99963535,216.3,216.24,10.64463535]
[1736241498039,8.99963535,216.29,216.24,1.645]